{"text_format":"1","workbook":"xlsx","n_sheets":6,"sheets":["Лист1","Осн. таблица","Сводная таблица","Статистика","Дополнительные продажи","Лист2"],"not_rendered":{"charts":0,"images":0,"macros":1,"external_links":0,"defined_names":1,"comments":0,"pivot_tables":5},"unopened":[],"bounds":{"document_bytes":16777216,"sheet_cells":100000,"rows_first":2000,"rows_last":500,"rows_between":2000,"halvings":0,"cell_chars":16384,"cell_head_chars":4096},"cells_cut":0,"cells_raw":0,"read":"whole","date_system":"1900"}

{"sheet":"Лист1","index":0,"n_rows":12,"n_cols":6,"rows_kept":12,"cut":false,"hidden":false,"merged":[]}
[]
[]
["tst","Названия столбцов"]
["Названия строк","Клиент1","Клиент2","Клиент3","Клиент4","Общий итог"]
[44977,0.66666666666666663,1,1,null,0.8]
[44978,1,null,null,null,1]
[44979,null,1,0,null,0.5]
[44983,0,null,null,null,0]
[44984,null,null,null,1,1]
[44989,null,1,null,null,1]
[44990,null,null,0,null,0]
["Общий итог",0.6,1,0.33333333333333331,1,0.66666666666666663]

{"sheet":"Осн. таблица","index":1,"n_rows":13,"n_cols":12,"rows_kept":13,"cut":false,"hidden":false,"merged":[]}
["№ п/п","Дата","Номер заказа","Сумма","Доп.продажи","Клиент","СЕГОДНЯ"]
[{"$f":"ROW()-1","v":1},44977,11111,100,10,"Клиент1",{"$f":"IF(Таблица1[[#This Row],[Дата]]=TODAY(),\"СЕГОДНЯ\",Таблица1[[#This Row],[Дата]])","v":44977},null,"СЕГОДНЯ","СЕГОДНЯ",{"$f":"TODAY()","v":44989}]
[2,44977,22222,200,20,"Клиент2",{"$f":"IF(Таблица1[[#This Row],[Дата]]=TODAY(),\"СЕГОДНЯ\",Таблица1[[#This Row],[Дата]])","v":44977}]
[3,"2023-02-20",33333,300,30,"Клиент3",{"$f":"IF(Таблица1[[#This Row],[Дата]]=TODAY(),\"СЕГОДНЯ\",Таблица1[[#This Row],[Дата]])","v":44977},null,"Названия строк","Число элементов в столбце Сумма","Число элементов в столбце Доп.продажи","Доп.продажи, %"]
[4,"2023-02-20",11112,150,null,"Клиент1",{"$f":"IF(Таблица1[[#This Row],[Дата]]=TODAY(),\"СЕГОДНЯ\",Таблица1[[#This Row],[Дата]])","v":44977},null,"Клиент2",1,1,1]
[5,"2023-02-20",11113,130,13,"Клиент1",{"$f":"IF(Таблица1[[#This Row],[Дата]]=TODAY(),\"СЕГОДНЯ\",Таблица1[[#This Row],[Дата]])","v":44977},null,"Общий итог",1,1,1]
[6,"2023-03-04",22223,220,27,"Клиент2",{"$f":"IF(Таблица1[[#This Row],[Дата]]=TODAY(),\"СЕГОДНЯ\",Таблица1[[#This Row],[Дата]])","v":"СЕГОДНЯ"}]
[7,"2023-02-21",11114,160,30,"Клиент1",{"$f":"IF(Таблица1[[#This Row],[Дата]]=TODAY(),\"СЕГОДНЯ\",Таблица1[[#This Row],[Дата]])","v":44978}]
[8,"2023-03-05",33334,340,null,"Клиент3",{"$f":"IF(Таблица1[[#This Row],[Дата]]=TODAY(),\"СЕГОДНЯ\",Таблица1[[#This Row],[Дата]])","v":44990}]
[9,"2023-02-22",22224,250,17,"Клиент2",{"$f":"IF(Таблица1[[#This Row],[Дата]]=TODAY(),\"СЕГОДНЯ\",Таблица1[[#This Row],[Дата]])","v":44979}]
[10,"2023-02-22",33335,370,null,"Клиент3",{"$f":"IF(Таблица1[[#This Row],[Дата]]=TODAY(),\"СЕГОДНЯ\",Таблица1[[#This Row],[Дата]])","v":44979}]
[{"$f":"ROW()-1","v":11},"2023-02-26",11115,144,null,"Клиент1",{"$f":"IF(Таблица1[[#This Row],[Дата]]=TODAY(),\"СЕГОДНЯ\",Таблица1[[#This Row],[Дата]])","v":44983}]
[{"$f":"ROW()-1","v":12},"2023-02-27",44444,400,40,"Клиент4",{"$f":"IF(Таблица1[[#This Row],[Дата]]=TODAY(),\"СЕГОДНЯ\",Таблица1[[#This Row],[Дата]])","v":44984}]

{"sheet":"Сводная таблица","index":2,"n_rows":19,"n_cols":9,"rows_kept":19,"cut":false,"hidden":false,"merged":[[0,0,0,8],[4,3,4,4],[4,7,4,8],[4,5,4,6],[14,1,14,2],[14,3,14,4],[14,5,14,6],[14,7,14,8],[2,0,2,8],[12,0,12,8],[4,0,5,0],[4,1,4,2],[16,1,16,2],[17,1,17,2],[18,1,18,2],[15,3,15,4],[16,3,16,4],[17,3,17,4],[18,3,18,4],[15,1,15,2],[16,5,16,6],[17,5,17,6],[18,5,18,6],[15,7,15,8],[16,7,16,8],[17,7,17,8],[18,7,18,8],[15,5,15,6]]}
["Как должны выглядеть сводные таблицы"]
[]
["Таблица \"Статистика\""]
[]
["Фильтр (выбор дат)","Клиент1",null,"Клиент2",null,"Клиент3",null,"Клиент4…"]
[null,"Всего заказов","С доп.продажами","Всего заказов","С доп.продажами","Всего заказов","С доп.продажами","Всего заказов","С доп.продажами"]
["Дата1","Столбец D, количество для Клиент1 за Дату1","Столбец E, количество для Клиент1 за Дату1","Столбец D, количество для Клиент2 за Дату1","Столбец E, количество для Клиент2 за Дату1","Столбец D, количество для Клиент3 за Дату1","Столбец E, количество для Клиент3 за Дату1","Столбец D, количество для Клиент4 за Дату1","Столбец E, количество для Клиент4 за Дату1"]
["Дата2","Столбец D, количество для Клиент1 за Дату2","Столбец E, количество для Клиент1 за Дату2","Столбец D, количество для Клиент2 за Дату2","Столбец E, количество для Клиент2 за Дату2","Столбец D, количество для Клиент3 за Дату2","Столбец E, количество для Клиент3 за Дату2","Столбец D, количество для Клиент4 за Дату2","Столбец E, количество для Клиент4 за Дату2"]
["Дата3","Столбец D, количество для Клиент1 за Дату3","Столбец E, количество для Клиент1 за Дату3","Столбец D, количество для Клиент2 за Дату3","Столбец E, количество для Клиент2 за Дату3","Столбец D, количество для Клиент3 за Дату3","Столбец E, количество для Клиент3 за Дату3","Столбец D, количество для Клиент4 за Дату3","Столбец E, количество для Клиент4 за Дату3"]
["Дата4…","Столбец D, количество для Клиент1 за Дату4…","Столбец E, количество для Клиент1 за Дату4","Столбец D, количество для Клиент2 за Дату4…","Столбец E, количество для Клиент2 за Дату4","Столбец D, количество для Клиент3 за Дату4…","Столбец E, количество для Клиент3 за Дату4","Столбец D, количество для Клиент4 за Дату4","Столбец E, количество для Клиент4 за Дату4"]
[]
[]
["Таблица \"Дополнительные продажи\""]
[]
["Фильтр (выбор дат)","Клиент1",null,"Клиент2",null,"Клиент3",null,"Клиент4…"]
["Дата1","Формула \"(Столбец E * 100)/Столбец D\" для Клиент1 за Дату1, проценты",null,"Формула \"(Столбец E * 100)/Столбец D\" для Клиент2 за Дату1, проценты",null,"Формула \"(Столбец E * 100)/Столбец D\" для Клиент3 за Дату1, проценты",null,"Формула \"(Столбец E * 100)/Столбец D\" для Клиент4 за Дату1, проценты"]
["Дата2","Формула \"(Столбец E * 100)/Столбец D\" для Клиент1 за Дату2, проценты",null,"Формула \"(Столбец E * 100)/Столбец D\" для Клиент2 за Дату2, проценты",null,"Формула \"(Столбец E * 100)/Столбец D\" для Клиент3 за Дату2, проценты",null,"Формула \"(Столбец E * 100)/Столбец D\" для Клиент4 за Дату2, проценты"]
["Дата3","Формула \"(Столбец E * 100)/Столбец D\" для Клиент1 за Дату3, проценты",null,"Формула \"(Столбец E * 100)/Столбец D\" для Клиент2 за Дату3, проценты",null,"Формула \"(Столбец E * 100)/Столбец D\" для Клиент3 за Дату3, проценты",null,"Формула \"(Столбец E * 100)/Столбец D\" для Клиент4 за Дату3, проценты"]
["Дата4…","Формула \"(Столбец E * 100)/Столбец D\" для Клиент1 за Дату4, проценты",null,"Формула \"(Столбец E * 100)/Столбец D\" для Клиент2 за Дату4, проценты",null,"Формула \"(Столбец E * 100)/Столбец D\" для Клиент3 за Дату4, проценты",null,"Формула \"(Столбец E * 100)/Столбец D\" для Клиент4 за Дату4, проценты"]

{"sheet":"Статистика","index":3,"n_rows":9,"n_cols":9,"rows_kept":9,"cut":false,"hidden":false,"merged":[]}
[null,"Названия столбцов"]
[null,"Клиент1",null,"Клиент2",null,"Клиент3",null,"Клиент4"]
["Названия строк","Количество по полю Сумма","Количество по полю Доп.продажи","Количество по полю Сумма","Количество по полю Доп.продажи","Количество по полю Сумма","Количество по полю Доп.продажи","Количество по полю Сумма","Количество по полю Доп.продажи"]
[44977,3,2,1,1,1,1]
[44978,1,1,1,1]
[44979,null,null,1,1,2]
[44983,1]
[44984,null,null,null,null,null,null,1,1]
["Общий итог",5,3,3,3,3,1,1,1]

{"sheet":"Дополнительные продажи","index":4,"n_rows":9,"n_cols":11,"rows_kept":9,"cut":false,"hidden":false,"merged":[]}
[null,"Названия столбцов"]
[null,"Клиент1",null,"Клиент2",null,"Клиент3",null,"Клиент4",null,"Итог Количество по полю Сумма","Итог Количество по полю Доп.продажи"]
["Названия строк","Количество по полю Сумма","Количество по полю Доп.продажи","Количество по полю Сумма","Количество по полю Доп.продажи","Количество по полю Сумма","Количество по полю Доп.продажи","Количество по полю Сумма","Количество по полю Доп.продажи"]
[44977,3,2,1,1,1,1,null,null,5,4]
[44978,1,1,1,1,null,null,null,null,2,2]
[44979,null,null,1,1,2,null,null,null,3,1]
[44983,1,null,null,null,null,null,null,null,1]
[44984,null,null,null,null,null,null,1,1,1,1]
["Общий итог",5,3,3,3,3,1,1,1,12,8]

{"sheet":"Лист2","index":5,"n_rows":5,"n_cols":3,"rows_kept":5,"cut":false,"hidden":false,"merged":[]}
["Дата",44984]
[]
["Названия строк","Количество по полю Сумма","Количество по полю Доп.продажи"]
["Клиент4",1,1]
["Общий итог",1,1]